Cogmind - Beta 16 @@@ ROGUE MODE // 2025.11.20 @ 13:45:16 // Winter2019/RPGLIKE Player: Jaegerpls Result: Destroyed by H-66 Slayer with Gauss Rifle Performance ------------- Evolutions (4) 2000 Regions Visited (6) 1200 Robots Destroyed (95) 475 Value Destroyed (4233) 4233 Prototype IDs (28) 560 Alien Tech Used (0) 0 Bonus (969) 969 TOTAL SCORE: 9437 Bonus ------- High Alert Combat Kills 198 Registered with UFD 300 Met Optimus in HQ 500 Friendly Fire -29 Cogmind --------- Core Integrity 0/650 Matter 500/500 Energy 67/280 System Corruption 0% Temperature Cool (0) Movement Treading (160) Location -6/Factory Parts ------- > --- POWER (2+1) ------ Cold Fusion Reactor Meta Core (+) > --- PROPULSION (3+2) - Improved Treads Improved Treads (fused) Spiked Treads (+) Medium Treads Improved Medium Treads (+) > --- UTILITY (7+2) ---- Improved Signal Interpreter Improved Terrain Scanner Advanced Targeting Computer Improved Medium Armor Plating Force Field A0-MCA's Component Scanner (+) Improved System Restoration Module High-powered Tractor Beam Rainbow Chip (+) > --- WEAPON (4+1) ----- Barrage Gun Gauss Rifle Heavy Battle Rifle Improved Heavy Machine Gun Plasma Cutter (+) > --- INVENTORY (3) ---- Cooling System Kinecellerator Field Recycling Unit (0) Peak State ------------ > --- POWER ------------ Fission Core Cold Fusion Reactor Meta Core > --- PROPULSION ------- Improved Treads Improved Treads Spiked Treads Medium Treads Improved Medium Treads > --- UTILITY ---------- Improved Signal Interpreter Improved Terrain Scanner Advanced Targeting Computer Improved Medium Armor Plating Force Field A0-MCA's Component Scanner Improved System Restoration Module High-powered Tractor Beam Rainbow Chip > --- WEAPON ----------- Barrage Gun Gauss Rifle Heavy Battle Rifle Improved Heavy Machine Gun Plasma Cutter > --- INVENTORY -------- Cooling System Kinecellerator Tractor Beam [Rating: 106] Favorites ----------- Power Light Nuclear Core Engine Ion Engine Power Core Light Nuclear Core Reactor Cold Fusion Reactor Propulsion Light Treads Treads Light Treads Leg Aluminum Leg Wheel Wheel Utility Improved Terrain Scanner Device Improved Terrain Scanner Processor Rainbow Chip Hackware Hacking Suite Protection Scrap Shield Weapon Barrage Gun Energy Gun Particle Gun Ballistic Gun Barrage Gun Ballistic Cannon Improved Light Cannon Launcher Grenade Launcher Special Weapon Plasma Cutter Impact Weapon Maul Slashing Weapon Makeshift Axe Piercing Weapon Makeshift Spear Build | -11 -10 -10 -10 -9 -9 -6 ------- Run | Yrd Mat Min Sub Rec Scr Fac Slots Evolved 12 | 4 2 2 1 1 1 1 Power 1 | . . 1 . . . . Propulsion 2 | 1 . . . 1 . . Utility 6 | 2 1 1 1 . 1 . Weapon 3 | 1 1 . . . . 1 Parts Attached 65 | 7 6 4 18 7 11 12 Power 6 | 1 1 1 1 . . 2 Engine 1 | 1 . . . . . . Core 4 | . 1 1 1 . . 1 Reactor 1 | . . . . . . 1 Propulsion 12 | 2 . . 3 2 3 2 Treads 9 | 2 . . 1 1 3 2 Leg 1 | . . . . 1 . . Wheel 2 | . . . 2 . . . Hover . | . . . . . . . Flight . | . . . . . . . Utility 24 | 2 2 1 4 2 7 6 Device 11 | 2 . 1 1 1 2 4 Storage . | . . . . . . . Processor 6 | . 1 . 1 1 1 2 Hackware 1 | . . . . . 1 . Protection 6 | . 1 . 2 . 3 . Artifact . | . . . . . . . Weapon 23 | 2 3 2 10 3 1 2 Energy Gun 4 | . 1 2 . . . 1 Energy Cannon . | . . . . . . . Ballistic Gun 12 | 2 . . 8 . 1 1 Ballistic Cannon 1 | . . . . 1 . . Launcher 1 | . 1 . . . . . Special Weapon 2 | . 1 . . 1 . . Impact Weapon 1 | . . . . 1 . . Slashing Weapon 1 | . . . 1 . . . Piercing Weapon 1 | . . . 1 . . . Special Melee Weapon . | . . . . . . . Unidentified Prototypes 2 | . . . 2 . . . Parts Lost 2 | . . . 1 . . 1 Power 1 | . . . . . . 1 Propulsion . | . . . . . . . Utility . | . . . . . . . Weapon 1 | . . . 1 . . . Highest Loss Streak 1 | . . . 1 . . 1 To Critical Strikes . | . . . . . . . Average Backups 2 | . . 1 2 3 2 2 Power . | . . . . . . . Propulsion . | . . . . . . . Utility 1 | . . 1 1 1 . 2 Weapon . | . . . 1 1 1 . Tool/Special . | . . . . . . . Unused Backups 4 | . 1 . 2 . . 1 Power . | . . . . . . . Propulsion . | . . . . . . . Utility 1 | . . . . . . 1 Weapon 2 | . 1 . 1 . . . Tool/Special 1 | . . . 1 . . . Average Slot Usage (%) 87 | . 96 97 75 74 84 98 Core 11 | . 4 13 12 15 14 9 Reactor 1 | . . . . . . 3 Treads 15 | . 21 14 6 12 16 21 Wheel 1 | . . . 3 . . . Device 15 | . 21 24 13 15 12 15 Processor 12 | . 10 8 10 10 13 17 Protection 5 | . 2 8 6 5 6 4 Energy Gun 4 | . 4 20 5 . . . Ballistic Gun 13 | . 15 . 12 14 13 16 Special Weapon 3 | . 6 4 1 1 4 4 Peak Build Rating 106 | 9 17 24 61 62 82 106 Average Rating 56 | 4 13 22 41 60 70 99 On Entrance 35 | . 9 17 23 60 62 80 Avg Prop Armor Cover (%) 3 | . . . 3 . . 7 Naked Turns . | . . . . . . . Heaviest Build 62 | 11 18 27 47 49 49 62 Greatest Support 129 | 40 40 40 40 65 94 129 Greatest Overweight (x) 13 | 1 . 1 13 1 . . Average Overweight (x) . | . . . 2 . . . Largest Inventory Capacity 3 | 1 1 2 3 3 3 3 Average Capacity 2 | . 1 1 2 3 3 3 Most Carried 3 | 1 1 2 3 3 3 3 Average Carried 2 | . . 1 2 3 2 2 Final Capacity 3 | 1 1 2 3 3 3 3 Final Carried 3 | 1 1 2 3 3 3 3 Class Distribution -------------------- 63% | Scavenger-Gunner 12% | Hacker-Skirmisher 7% | Scientist-Skirmisher 5% | Derelict-Gunner 4% | Mutant Dominant Class ---------------- Scavenger-Gunner | -10/Materials Scavenger-Gunner | -10/Mines Scavenger-Gunner | -10/Subcaves Scavenger-Gunner | -9/Recycling Scavenger-Gunner | -9/Scraptown Hacker-Skirmisher | -6/Factory Resources | -11 -10 -10 -10 -9 -9 -6 ----------- Run | Yrd Mat Min Sub Rec Scr Fac Matter Collected 4160 | 300 678 203 1198 157 208 1416 Remotely 2436 | 102 678 203 37 . . 1416 Salvage Created 3652 | 88 704 393 779 18 130 1540 Parts 214 | 9 51 14 60 . 4 76 Haulers Intercepted 3 | . 2 . . . . 1 Recyclers Shooed 6 | . 1 3 . 1 . 1 Parts Field Recycled . | . . . . . . . Retrieved Matter . | . . . . . . . Parts Self-Destructed 19 | . . . 16 . 3 . Prevented . | . . . . . . . Parts Restored 1 | . . . . . 1 . Broken 1 | . . . . . 1 . Kills | -11 -10 -10 -10 -9 -9 -6 ------- Run | Yrd Mat Min Sub Rec Scr Fac Combat Hostiles Destroyed 77 | . 19 11 22 . . 25 Guns 74 | . 17 11 22 . . 24 AOE 3 | . 2 . . . . 1 Classes Destroyed 15 | 2 5 . 3 . . 5 Worker 1 | . . . . . . 1 Tunneler 1 | 1 . . . . . . Hauler 3 | . 2 . . . . 1 Recycler 4 | 1 . 2 . . . 1 Operator 2 | . 1 . . . . 1 Turret 2 | . . . 2 . . . Watcher 5 | . 3 . . . . 2 Swarmer 13 | . 6 3 4 . . . Cutter 2 | . . . . . . 2 Grunt 32 | . 13 8 . . . 11 Sentry 4 | . . . 1 . . 3 Specialist 1 | . . . . . . 1 Hunter 3 | . . . . . . 3 Programmer 5 | . . . . . . 5 Subdweller 17 | . . . 17 . . . Best Kill Streak 5 | 2 5 3 4 . . 3 Combat Bots Only 5 | . 5 3 4 . . 3 Max Kills in Single Turn 2 | 1 2 1 2 . . 2 Gunslinging 1 | . . . 1 . . 1 Exploded 1 | . 1 . . . . 1 Melee . | . . . . . . . Uniques/NPCs Destroyed . | . . . . . . . Combat | -11 -10 -10 -10 -9 -9 -6 -------- Run | Yrd Mat Min Sub Rec Scr Fac Hostile Shots Fired 489 | . 54 30 163 2 . 240 Missed 154 | . 8 11 57 1 . 77 Hits 335 | . 46 19 106 1 . 163 Melee 5 | . . . . . . 5 Projectile 330 | . 46 19 106 1 . 158 AOE 1 | . . . . . . 1 Critical Strikes 6 | . 2 . . . . 4 Part Disruptions 3 | . . . . . . 3 Damage Taken 4078 | . 546 235 1658 16 . 1623 Core 2710 | . 444 174 917 12 . 1163 Absorbed by Shields 806 | . . . . . . 806 Redirected to Core 2460 | . 341 138 903 12 . 1066 Regen/Repaired (Parts) 378 | . . . . . 378 . Core Remaining (%) 100 | 100 . . . . 100 . Volleys Fired 291 | 5 62 32 103 12 . 77 Largest 5 | 2 3 3 3 3 . 5 Hottest 195 | 40 85 195 195 89 . 164 Shots Fired 813 | 10 113 82 282 24 . 302 Gun 792 | 10 96 82 282 24 . 298 Cannon . | . . . . . . . Launcher 15 | . 15 . . . . . Special 6 | . 2 . . . . 4 Kinetic 658 | 10 90 13 232 24 . 289 Thermal 140 | . 8 69 50 . . 13 Explosive 15 | . 15 . . . . . Electromagnetic . | . . . . . . . Robot Hit Streak 54 | 4 17 15 21 3 . 54 Robot Miss Streak 8 | 2 6 2 8 2 . 3 Penetration Max 1 | . . . . . . 1 Secondary Targets 15 | . 1 4 6 . . 4 Max Gunslinging Chain 1 | . 1 1 1 . . 1 Shots Hit Robots 531 | 6 69 53 153 6 7 237 Core Hits 198 | 3 41 22 44 1 4 83 Critical Kills 1 | . . . . . . 1 Critical Parts Destroyed 2 | . . . . . . 2 Critical Strikes 7 | . . 2 1 . . 4 Burn 4 | . . 2 1 . . 1 Destroy 3 | . . . . . . 3 Melee Attacks 7 | . . . . . 7 . Impact . | . . . . . . . Slashing 7 | . . . . . 7 . Piercing . | . . . . . . . Sneak Attacks . | . . . . . . . Combat Hostiles . | . . . . . . . Follow-up Attacks . | . . . . . . . Damage Inflicted 9091 | 79 1036 816 1977 119 548 4516 Guns 8302 | 79 858 816 1977 119 . 4453 Cannons . | . . . . . . . Explosions 207 | . 156 . . . . 51 Melee 548 | . . . . . 548 . Ramming . | . . . . . . . Kinetic 6906 | 79 794 125 1530 119 . 4259 Thermal 1430 | . 86 691 447 . . 206 Explosive 156 | . 156 . . . . . Electromagnetic 51 | . . . . . . 51 Impact . | . . . . . . . Slashing 548 | . . . . . 548 . Piercing . | . . . . . . . Highest Corruption 3 | . 3 3 3 3 . 1 Average Corruption 2 | . 2 3 3 3 . 1 Corruption Purged 3 | . . . . . . 3 Corruption Blocked . | . . . . . . . Effects 153 | . 19 26 79 25 . 4 Message Errors 42 | . 4 8 24 6 . . Matter Fused 42 | . 4 9 21 7 . 1 Heat Flow Errors 13 | . . 4 6 3 . . Energy Discharges 10 | . 2 2 6 . . . Parts Fused 2 | . . . 1 . . 1 Data Loss (minor) 25 | . 7 3 9 6 . . Data Loss (major) 7 | . . . 4 1 . 2 Misfires 9 | . 2 . 5 2 . . Alerts 2 | . . . 2 . . . Weapon Failures 1 | . . . 1 . . . Overload Shots . | . . . . . . . Overflow Damage 163 | . . . . . 163 . Projectiles . | . . . . . . . Explosions . | . . . . . . . Melee 163 | . . . . . 163 . Knockbacks . | . . . . . . . Impact . | . . . . . . . Kinetic . | . . . . . . . Secondary . | . . . . . . . Self-Inflicted Damage 90 | . . . . . . 90 Shots 2 | . . . . . . 2 Rammed . | . . . . . . . Targets Rammed . | . . . . . . . Kicked . | . . . . . . . Crushed . | . . . . . . . Highest Temperature 418 | . 2 418 197 174 . 216 Average Temperature 98 | . 2 121 57 78 . 84 Received Heat Transfer 1084 | . 273 123 366 . . 322 Effects 3 | . . 3 . . . . Shutdowns 1 | . . 1 . . . . Interference 1 | . . 1 . . . . Short Circuit 1 | . . 1 . . . . Siege Activations . | . . . . . . . Martial Activations . | . . . . . . . Shielding Activations . | . . . . . . . Robots Disrupted . | . . . . . . . Combat Hostiles . | . . . . . . . Robots Corrupted . | . . . . . . . Combat Hostiles . | . . . . . . . Parts Fried . | . . . . . . . Impact Corruptions . | . . . . . . . Robots Melted . | . . . . . . . Combat Hostiles . | . . . . . . . Parts Melted 4 | . . 4 . . . . Heat Transferred 3645 | . 222 1739 1147 . . 537 Parts Sabotaged . | . . . . . . . Parts Stolen . | . . . . . . . Parts Stripped . | . . . . . . . Power Chain Reactions 1 | . . . . . . 1 Alert | -11 -10 -10 -10 -9 -9 -6 ------- Run | Yrd Mat Min Sub Rec Scr Fac Maximum Alert Level 3 | . 2 1 . . . 3 Low Security (%) 66 | 100 38 90 . 100 . 62 Level 1 11 | . 19 9 . . . 11 Level 2 21 | . 42 . . . . 25 Level 3 . | . . . . . . . Level 4 . | . . . . . . . Level 5 . | . . . . . . . High Security . | . . . . . . . Max Security . | . . . . . . . Peak Influence 773 | 10 559 243 . 76 . 773 Initial 213 | . . 213 . 76 . . Average 170 | 1 291 88 . 18 . 186 Influence Increases 3466 | 10 1165 355 201 240 25 1470 Destroy 0b10 Robot/C 1260 | . 380 220 140 . . 520 Destroy 0b10 Robot/NC 105 | 10 30 10 . . 25 30 Destroy Leader 306 | . 80 50 . . . 176 Allied During Kill 1 | . . . 1 . . . Successful Hack 98 | . 27 . . 15 . 56 Disable Machine 1500 | . 540 75 . 225 . 660 Destroy Structure 106 | . 93 . . . . 13 Partial Spotted 15 | . . . . . . 15 Lose Combat Pursuer 75 | . 15 . 60 . . . Influence Decreases 2693 | 10 616 886 58 365 61 697 Entered New Map 467 | . . 336 10 85 36 . Time Decay 2049 | 10 616 550 28 193 25 627 Lost Part 10 | . . . . . . 10 Lost Ally 80 | . . . 20 . . 60 Purge Threat 87 | . . . . 87 . . Squads Dispatched 18 | . 4 . . . . 14 Investigation 5 | . 2 . . . . 3 Extermination 6 | . . . . . . 6 Reinforcement 7 | . 2 . . . . 5 Assault . | . . . . . . . Garrison . | . . . . . . . Intercept . | . . . . . . . Searches Triggered . | . . . . . . . Construction Impeded . | . . . . . . . Haulers Reinforced 1 | . . . . . . 1 Active Scanning Responses . | . . . . . . . Cargo Convoy Interrupts . | . . . . . . . Stealth | -11 -10 -10 -10 -9 -9 -6 --------- Run | Yrd Mat Min Sub Rec Scr Fac Distress Signals 1 | . 1 . . . . . Communications Jammed . | . . . . . . . Distress Signals . | . . . . . . . Times Spotted 96 | . 27 11 24 1 . 33 Peak Tracking Total 6 | . 5 3 6 1 . 6 Tactical Retreats 3 | . 1 . 2 . . . Traps | -11 -10 -10 -10 -9 -9 -6 ------- Run | Yrd Mat Min Sub Rec Scr Fac Traps Triggered 10 | . 8 . 1 . . 1 Indirectly 1 | . . . . . . 1 Trap Hack Attempts . | . . . . . . . Triggered . | . . . . . . . Disarmed . | . . . . . . . Reprogrammed . | . . . . . . . Reused . | . . . . . . . Traps Extracted . | . . . . . . . Installed . | . . . . . . . Triggered . | . . . . . . . Machines | -11 -10 -10 -10 -9 -9 -6 ---------- Run | Yrd Mat Min Sub Rec Scr Fac Machines Disabled 102 | . 36 5 2 15 . 44 Max in Single Turn 2 | . 2 1 1 1 . 1 Garrison Access 1 | . . . . . . 1 Machines Repaired . | . . . . . . . Machines Dismantled 75 | . 25 5 . 6 . 39 Machines Sabotaged . | . . . . . . . Overloaded Fab Kills . | . . . . . . . Hacking | -11 -10 -10 -10 -9 -9 -6 --------- Run | Yrd Mat Min Sub Rec Scr Fac Machines Accessed 38 | . 7 . 1 11 8 11 Terminals 15 | . 5 . . 6 . 4 Fabricators 2 | . . . . . . 2 Repair Stations 1 | . . . . . . 1 Recycling Units 9 | . 2 . . 5 . 2 Scanalyzers 1 | . . . . . . 1 Garrison Access 1 | . . . . . . 1 Total Hacks 172 | . 27 . 9 36 65 35 Successful 131 | . 15 . 9 23 65 19 Failed 39 | . 11 . . 12 . 16 Catastrophic 2 | . . . . 1 . 1 Database Lockouts 2 | . 1 . . 1 . . Manual 67 | . 22 . . 21 . 24 Terminals 60 | . 21 . . 27 . 12 Fabricators 7 | . . . . . . 7 Repair Stations 2 | . . . . . . 2 Recycling Units 19 | . 6 . . 9 . 4 Scanalyzers 6 | . . . . . . 6 Garrison Access 4 | . . . . . . 4 Terminal Hacks 83 | . 3 . 9 6 65 . Record 73 | . . . 8 . 65 . Robot Analysis 5 | . 3 . . 2 . . Prototype ID Bank 1 | . . . . 1 . . Alert Level 1 | . . . . 1 . . Unreport Threat 1 | . . . . 1 . . Surveillance Status 1 | . . . . 1 . . Proto ID Catalog 1 | . . . 1 . . . Fabricator Hacks . | . . . . . . . Repair Station Hacks . | . . . . . . . Recycling Unit Hacks 13 | . 4 . . 8 . 1 Report Inventory 8 | . 2 . . 5 . 1 Retrieve Components 5 | . 2 . . 3 . . Scanalyzer 6 | . . . . . . 6 Retrieve Study 6 | . . . . . . 6 Garrison Access Hacks 1 | . . . . . . 1 Seal Access 1 | . . . . . . 1 Unauthorized Hacks 27 | . 8 . . 9 . 10 Terminals 19 | . 7 . . 9 . 3 Botnet 6 | . 2 . . 3 . 1 Skim 13 | . 5 . . 6 . 2 Fabricators 4 | . . . . . . 4 Report 1 | . . . . . . 1 Liberate 2 | . . . . . . 2 Haulers 1 | . . . . . . 1 Repair Stations 1 | . . . . . . 1 Mechanics 1 | . . . . . . 1 Recycling Units 3 | . 1 . . . . 2 Reject 1 | . 1 . . . . . Fedlink 2 | . . . . . . 2 Scanalyzers . | . . . . . . . Garrison Access . | . . . . . . . Data Cores Recovered . | . . . . . . . Used . | . . . . . . . Hacking Detections 23 | . 5 . . 8 . 10 Full Trace Events 1 | . . . . 1 . . Feedback Events . | . . . . . . . Feedback Blocked . | . . . . . . . Robot Schematics Acquired . | . . . . . . . Robots Built . | . . . . . . . Authchips . | . . . . . . . Time . | . . . . . . . Total Robot Build Rating . | . . . . . . . Part Schematics Acquired . | . . . . . . . Parts Built . | . . . . . . . Authchips . | . . . . . . . Time . | . . . . . . . Total Part Build Rating . | . . . . . . . Part Studies Acquired 6 | . . . . . . 6 Parts Repaired . | . . . . . . . Time . | . . . . . . . Parts Recycled . | . . . . . . . Recycled Matter . | . . . . . . . Retrieved Matter . | . . . . . . . Retrieved Components 32 | . 20 . . 12 . . Parts Scanalyzed . | . . . . . . . Part Schematics Acquired . | . . . . . . . Parts Damaged . | . . . . . . . Bothacking | -11 -10 -10 -10 -9 -9 -6 ------------ Run | Yrd Mat Min Sub Rec Scr Fac Used RIF Installer . | . . . . . . . Robots Hacked . | . . . . . . . Non-combat . | . . . . . . . Combat . | . . . . . . . Robot Hacks Applied . | . . . . . . . Relay Couplers Released . | . . . . . . . Fabnet Peak Effective % . | . . . . . . . Robots Rewired . | . . . . . . . Allies Hacked . | . . . . . . . Hacks Repelled . | . . . . . . . Allies | -11 -10 -10 -10 -9 -9 -6 -------- Run | Yrd Mat Min Sub Rec Scr Fac Total Allies 4 | . . . 1 . . 3 Largest Group 3 | . . . 1 . . 3 Highest-Rated Group 90 | . . . 19 . . 90 Highest-Rated Ally 30 | . . . 19 . . 30 Total Orders . | . . . . . . . Ally Attacks 11 | . . . 1 . . 10 Total Damage 320 | . . . 19 . . 301 Kills 1 | . . . . . . 1 Allies Corrupted . | . . . . . . . Allies Melted . | . . . . . . . Intel | -11 -10 -10 -10 -9 -9 -6 ------- Run | Yrd Mat Min Sub Rec Scr Fac Active Infowar (turns) 17868 | 7 2404 1606 5077 1436 2721 4617 Terrain 17868 | 7 2404 1606 5077 1436 2721 4617 Robot Analysis Total 5 | . 3 . . 2 . . Derelict Logs Recovered 4 | . . 1 2 . 1 . Drone Launches . | . . . . . . . Drone Recoveries . | . . . . . . . Exploration | -11 -10 -10 -10 -9 -9 -6 ------------- Run | Yrd Mat Min Sub Rec Scr Fac Turns Passed 17945 | 84 2404 1606 5077 1436 2721 4617 Spaces Moved 7223 | 35 1009 596 1991 637 1541 1414 Core 9 | 8 . . 1 . . . Treads 5671 | 27 1009 596 447 637 1541 1414 Legs . | . . . . . . . Wheels 1543 | . . . 1543 . . . Hover . | . . . . . . . Flight . | . . . . . . . Fastest Speed 50 | 50 160 160 120 160 160 160 Average Speed 163 | 137 160 179 155 194 160 160 Slowest Speed 700 | 160 160 240 700 250 160 160 Overloaded Moves . | . . . . . . . Propulsion Burnouts . | . . . . . . . Robots Hopped . | . . . . . . . Potential Cave-ins . | . . . . . . . Cave-ins Triggered . | . . . . . . . Exploration Rate (%) 71 | 5 98 101 86 99 86 24 Regions Visited 6 Branch Regions 4 Pre-discovered Areas 8 | . 3 2 2 . . 1 Known Exits Taken 2 | . 1 . . 1 . . Unknown Exits Taken 4 | 1 . 1 1 . 1 . Scrap Searched 24 | . . 1 18 . 5 . Spaces Dug 1 | . . . 1 . . . Terrain Destroyed 123 | . 110 . 3 . . 10 Melee . | . . . . . . . Projectile 10 | . . . 3 . . 7 AOE 113 | . 110 . . . . 3 Terrain Rammed . | . . . . . . . Walls Destroyed . | . . . . . . . Machines Disabled . | . . . . . . . Actions | -11 -10 -10 -10 -9 -9 -6 --------- Run | Yrd Mat Min Sub Rec Scr Fac Total 12058 | 57 1491 1037 3767 775 1786 3145 Wait 3869 | 10 282 357 1567 87 205 1361 Move 7217 | 34 1008 595 1990 636 1540 1414 Hop . | . . . . . . . Pick Up 13 | 1 2 1 5 1 1 2 Fast Attach 68 | 7 13 4 19 9 8 8 Attach 7 | . 1 . 2 . 2 2 Detach 9 | . . . 2 1 1 5 Swap 24 | . 3 5 6 1 5 4 Drop 51 | . 4 5 22 7 4 9 Fire 291 | 5 62 32 103 12 . 77 Melee 7 | . . . . . 7 . Ram . | . . . . . . . Kick . | . . . . . . . Crush . | . . . . . . . Escape Stasis . | . . . . . . . Rewire . | . . . . . . . Trap . | . . . . . . . Miscellaneous 502 | . 116 38 51 21 13 263 Route ------- -11/Scrapyard -10/Materials (discovered 5 exits: *Mat x3 / *Min / Sub) -10/Mines (discovered 3 exits: *Mat x2 / *Sub) -10/Subcaves (discovered 3 exits: [*Mat x2] / *Rec) -9/Recycling (discovered 2 exits: *Fac / *Scr) -9/Scraptown (discovered 2 exits: *Fac x2) -6/Factory (discovered 3 exits: *Fac / [Low x2]) History --------- Turn | Location | Event 6 | -11/Scrapyard | Upgraded with Propulsion slot (x1) 6 | -11/Scrapyard | Upgraded with Utility slot (x2) 6 | -11/Scrapyard | Upgraded with Weapon slot (x1) 7 | -11/Scrapyard | Discovered new exit (range 16) 85 | -11/Scrapyard | Entered Materials 184 | -10/Materials | Discovered new exit (range 15) 305 | -10/Materials | Build established: Mutant 330 | -10/Materials | Discovered new exit (range 10) 363 | -10/Materials | Discovered new exit (range 10) 812 | -10/Materials | Reached level 2 814 | -10/Materials | Upgraded with Weapon slot (x1) 891 | -10/Materials | Discovered new exit (range 11) 1102 | -10/Materials | Build established: Gunner 1138 | -10/Materials | Discovered new exit (range 15) 1276 | -10/Materials | Central database locked down 1307 | -10/Materials | Reached level 3 1330 | -10/Materials | Upgraded with Utility slot (x1) 1397 | -10/Materials | Learned location of 1 exit from Recycling 1483 | -10/Materials | Learned location of 1 exit from Recycling 1531 | -10/Materials | Learned location of Mines (-8) 1561 | -10/Materials | Learned 4 Recycling zone layouts 1618 | -10/Materials | Build established: Scavenger-Gunner 1656 | -10/Materials | Identified exit to Materials 1656 | -10/Materials | Identified exit to Mines 2060 | -10/Materials | Reached level 4 2489 | -10/Materials | Entered Mines 2546 | -10/Mines | Upgraded with Utility slot (x1) 2903 | -10/Mines | Discovered exit to Materials (range 11) 2971 | -10/Mines | Reached level 5 2996 | -10/Mines | Upgraded with Power slot (x1) 3159 | -10/Mines | Discovered exit to Materials (range 16) 3323 | -10/Mines | Learned location of Zion (-7) 3397 | -10/Mines | Learned location of Storage (-9) 3746 | -10/Mines | Discovered new exit (range 14) 4095 | -10/Mines | Entered Subcaves 4097 | -10/Subcaves | Shifting Twisted Machinery released Battle Cannon 4097 | -10/Subcaves | Reached level 6 4217 | -10/Subcaves | Upgraded with Utility slot (x1) 4329 | -10/Subcaves | Discovered new exit (range 16) 4835 | -10/Subcaves | A Subdweller sparked back to life 4893 | -10/Subcaves | Found Prototype Processor 4893 | -10/Subcaves | Identified Rainbow Chip 4895 | -10/Subcaves | Attached Rainbow Chip, gained temporary slots: Power, Propulsion, Utility, Weapon 4928 | -10/Subcaves | Discovered new exit (range 8) 4978 | -10/Subcaves | Discovered new exit (range 6) 5280 | -10/Subcaves | A swath of the cavern ceiling suddenly collapsed 6458 | -10/Subcaves | Shifting Twisted Machinery released Battle Rifle 6475 | -10/Subcaves | Shifting Twisted Machinery released Sub. Machine Gun 6556 | -10/Subcaves | Learned Materials interactive machine intel 7113 | -10/Subcaves | Shifting Twisted Machinery released Unknown Ballistic Gun 7126 | -10/Subcaves | Shifting Twisted Machinery released Sub. Laser 7267 | -10/Subcaves | Met a Zionite searching for "candidates" 8143 | -10/Subcaves | Visited 4L-MR0's lab 8162 | -10/Subcaves | Found Meta Core 8163 | -10/Subcaves | Attached Meta Core, gained temporary slots: Propulsion, Utility, Weapon 8314 | -10/Subcaves | Disturbed a concealed Subdweller 8683 | -10/Subcaves | Visited triangular shrine 8698 | -10/Subcaves | Found Prototype Device 8698 | -10/Subcaves | Identified V3-11A's Pendant 8703 | -10/Subcaves | Befriended Subdweller 8972 | -10/Subcaves | Core integrity fell below 50% 9172 | -10/Subcaves | Entered Recycling 9173 | -9/Recycling | Joined Warlord attack on 0b10 via Recycling 9173 | -9/Recycling | Identified exit to Factory 9173 | -9/Recycling | Identified exit to Scraptown 9535 | -9/Recycling | Reached level 7 9538 | -9/Recycling | Upgraded with Propulsion slot (x1) 10541 | -9/Recycling | Learned 4 Recycling zone layouts 10571 | -9/Recycling | Scanned before Scraplab entrance 10594 | -9/Recycling | Entered Scraplab 10608 | -9/Recycling | Entered Scraptown 10608 | -9/Scraptown | System corruption cleaned by C-Scrubber 10610 | -9/Scraptown | Reached level 8 10753 | -9/Scraptown | Visited UFD Registry 10753 | -9/Scraptown | Registered with UFD as "Kinetibay" 10830 | -9/Scraptown | Visited Cyclists 10848 | -9/Scraptown | Entered Cyclist Reading Room 11001 | -9/Scraptown | Scanned Subdweller tech in exchange for log data 11006 | -9/Scraptown | Learned Factory garrison access intel 11124 | -9/Scraptown | Delivered V3-11A's Pendant to T0-NE2 in exchange for information 11288 | -9/Scraptown | Visited A0-MCA Data Center 11297 | -9/Scraptown | Given an A rating by A0-MCA 11328 | -9/Scraptown | Found A0-MCA's Component Scanner 11358 | -9/Scraptown | Visited Science Testing Area 11393 | -9/Scraptown | Visited Chapter 10 11443 | -9/Scraptown | Delivered Scrap Shield to a Scientist 11616 | -9/Scraptown | Visited Sword Containment 11775 | -9/Scraptown | Visited Scrap Suit Storage 11813 | -9/Scraptown | Visited DA-N13 Charitable Foundation 11828 | -9/Scraptown | Found DCF Scrap (32 items) 11855 | -9/Scraptown | Visited Abandonware Association 11871 | -9/Scraptown | Learned abandonware demo "REPAIR.EXE" 11871 | -9/Scraptown | Learned abandonware demo "MELTYB.EXE" 11930 | -9/Scraptown | Visited Curators Association 11965 | -9/Scraptown | Visited LU-1G1's Boring Crew 12026 | -9/Scraptown | Upgraded with Utility slot (x1) 12142 | -9/Scraptown | Build established: Derelict-Gunner 12365 | -9/Scraptown | Heard Great Nut preacher, LISTEN AND RECITE! 12475 | -9/Scraptown | Build established: Scavenger-Gunner 12593 | -9/Scraptown | Discovered new exit (range 14) 12741 | -9/Scraptown | Visited Awakened 12793 | -9/Scraptown | Visited CR-KLE's Repair Center 12804 | -9/Scraptown | CR-KLE repaired 11 parts 12841 | -9/Scraptown | Visited TADAMA 13152 | -9/Scraptown | Discovered new exit (range 16) 13235 | -9/Scraptown | Met Optimus 13235 | -9/Scraptown | Accepted into 0bPrime 13329 | -9/Scraptown | Entered Factory 13330 | -6/Factory | Loaded intel: 4 garrison access locations 13331 | -6/Factory | Reached level 9 13355 | -6/Factory | Upgraded with Weapon slot (x1) 13652 | -6/Factory | Build established: Derelict-Gunner 13777 | -6/Factory | Discovered new exit (range 15) 13922 | -6/Factory | Reached level 10 14332 | -6/Factory | Build established: Hacker-Skirmisher 14463 | -6/Factory | Identified exit to Factory 15635 | -6/Factory | Reached level 11 16306 | -6/Factory | Build established: Derelict-Skirmisher 16354 | -6/Factory | Reached level 12 16443 | -6/Factory | Discovered new exit (range 16) 16455 | -6/Factory | Loaded intel: 8 recycling unit locations 16939 | -6/Factory | Build established: Scientist-Skirmisher 17601 | -6/Factory | Learned location of Protoforge (-2) 17679 | -6/Factory | Reached level 13 17896 | -6/Factory | Discovered new exit (range 16) 17937 | -6/Factory | Core integrity fell below 50% 17940 | -6/Factory | Core integrity fell below 20% 17946 | -6/Factory | Destroyed by H-66 Slayer with Gauss Rifle Last Messages --------------- 17936_ Nuclear Reactor explodes. 17936_ Penetrated by Slug. 17937_ K-01 Serf destroyed. 17937_ K-01 Serf collects debris. 17938_ Acquired 19 matter. 17938_ Slug penetrates H-66 Slayer. 17938_ H-66 Slayer suffers critical hit (Destroy). 17938_ H-66 Slayer destroyed. 17938_ Switching to secondary target: Y-54 Guardian. 17939_ Acquired 56 matter. 17939_ Penetrated by Slug. 17941_ K-01 Serf collects debris. 17941_ Upgraded: Core Integrity (+50) 17941_ G-50 Soldier destroyed. 17942_ Acquired 15 matter. 17943_ Penetrated by Slug. 17945_ K-01 Serf collects debris. 17945_ Slug penetrates G-50 Soldier. 17945_ Destroyed Lgt. Angular Momentum Engine. 17946_ Acquired 15 matter. Map ----- +----------------------------------------------------+ | ##############??????????????????????????? | | ##############?????????????????A????????? | | ####################???????????????????????????? | | ####################???????????????????????????? | | ###################????????????????????????????? | | ##################?# ? ????????????????????????? | | # ###########? ####???"???????????????? | | # """ !########### ? ?#?#? ??" ?????????????? | | # """ ## ##+?#??### ??? ??""??????????? | | # """ ## # #? ?????????????????? | | # ## # # ?"" ??" ?????????? | | # ## # # ? ?"?? ????????? | | # = ##"""" # # k? ??? ???????? | | # ! ##"""" # A + ??????????? | | /[%%[= ##"""" # ? # ???? ??????? | | ##+# #####"""" # # ? ?????#?????? | | # ! ##"""" # ### ##?###?+??#?????? | | # *! ##"""" # ### ##?? ?? ??????? | | # *! ## g############ #### ??? ? ????? | | # ! ########/## ### ## ? ???????? | | # ###### ! ###!"" ## ?????????? | | + k + !=%RT ## ??? ???? | | # ###### kY###* ##? ???????? | | # ########+## h%!%###= #######???????? | | # ## %[ ## #####?##?#?#???? | | ########### """ =@g # ##?###?#???????? | | ########### """ ## # ??????? | | ########### ! """ ## # ? ????????? | | ########### # # ? """ ???????? | | ########### """ # # ? """ ???????? | | ############# """ # # """????????? | | ######## ! """ ## + ? ? ????????? | | " ######## ## # ?????????? | | "" #################### #### #######????????? | | """ # ###########? ?###??????????? | | # ########### ? ###??????????? | | # ########### ???????????? | | # ?###?#?##### < ? ???????????? | | # ? ? ???##########?? ??? ??????????????? | | ######?####+##?##?##?##?#?### ? ???????????????? | | ?????? ? ##??## ?????????????????? | | ########## ? ???? ?? ?#??#??#??????????????????? | | ? ? ? ??????????????????????????????? | | ##???#?###? ?#?????????????????????????? | | ###?###?##??? ??????????????????????????? | | ## ?"??? # ?????????????????????????????? | | ##??"""" #?? ??????????????????????????? | | ########### """? + ? ?? ???????????? | | ########### ? # ?### #?##??#??? ? ???????? | | ########### ?? ? ### ######## ##??????? | +----------------------------------------------------+ Best States ------------- Heat Dissipation 73 Energy Generation 44 Energy Capacity 490 Matter Stores 500 Matter Capacity 500 Sight Range 17 Robot Scan Range 20 Terrain Scan Range 16 Terrain Scan Density 410 Armor Coverage 950 Evasion (%) 40 Targeting Accuracy 8 Recoil Reduction 5 Kinecelleration 30 Offensive Hacking 20 Defensive Hacking 10 Item Schematics ----------------- None Robot Schematics ------------------ None Fabricated ------------ Nothing Repaired ---------- Nothing Studied --------- Gauss Rifle | -6/Factory | Hacked Fission Core | -6/Factory | Hacked Med. Treads | -6/Factory | Hacked Imp. Treads | -6/Factory | Hacked Imp. Medium Treads | -6/Factory | Hacked Plasma Cutter | -6/Factory | Hacked Alien Tech Used ----------------- None Achievements -------------- None Challenges ------------ None RPGLIKE | -11 -10 -10 -10 -9 -9 -6 --------- Run | Yrd Mat Min Sub Rec Scr Fac Levels Raised 12 | . 3 1 1 1 1 5 XP Earned 22450 | 3000 4984 1875 1035 2155 778 8623 XP Spent 20200 | 2990 2590 2400 2450 1010 2000 6760 Upgrades 51 | 11 6 3 2 3 1 25 Power Slot 1 | . . 1 . . . . Propulsion Slot 2 | 1 . . . 1 . . Utility Slot 6 | 2 1 1 1 . 1 . Weapon Slot 3 | 1 1 . . . . 1 Core Integrity 1 | . . . . . . 1 Heat Dissipation 8 | 2 1 . . 1 . 4 Matter Storage 4 | . 1 . . . . 3 Mass Support 1 | . . . . 1 . . Inventory Capacity 3 | 1 . 1 1 . . . Sight Range 1 | . . . . . . 1 Sensor Range 10 | 1 . . . . . 9 Terrain Scan Density 4 | 3 . . . . . 1 Ranged Accuracy 3 | . . . . . . 3 Hack Attack % 2 | . 1 . . . . 1 Hack Defense % 2 | . 1 . . . . 1 Protomatter Created 1064 | . 186 161 265 . 91 361 Integrity Restored 2703 | . 396 459 792 . 268 788 Core 2057 | . 369 249 792 . 137 510 Parts 646 | . 27 210 . . 131 278 Protomatter Decayed 337 | . 50 2 117 54 . 114 Game ------ Seed TitaniumShiftRegenerator Manual? 0 Play Time 02:54:11 Cumulative 111.4 hours Start 2025.11.20 @ 11:27:30 End 2025.11.20 @ 13:45:16 Sessions 1 Manual Loads 0 Difficulty Rogue Special Mode Winter2019/RPGLIKE Game No. 90 Rogue 90 Adventurer 0 Explorer 0 Win Type - Total 0 Types 0/0/0/0/0/0/0/0/0/0 Lore% 63 Gallery% 41 Achievement% 40 Wizard Run 0 Options --------- Layout 0 ASCII 0 Keyboard 0 Movement Mouse Keybinds 0 Fullscreen 2 Font 24/Smallcaps Map View 76x50 Zoom Use 0% Tactical HUD 1 Map Filters NONE Filters NONE Steam 1 RUN: 03db482c-1765-4a37-9b0c-812034e94e58